Cogmind - Beta 15 @@@ ROGUE MODE // 2025.07.29 @ 14:46:45 Player: bugsniper Result: Destroyed by D-63 Destroyer with Heavy Rocket Launcher Performance ------------- Evolutions (6) 3000 Regions Visited (11) 2200 Robots Destroyed (54) 270 Value Destroyed (1364) 1364 Prototype IDs (35) 700 Alien Tech Used (1) 200 Bonus (1895) 1895 TOTAL SCORE: 9629 Bonus ------- Registered with UFD 300 Met Optimus in HQ 500 Met Warlord at Base 500 MAIN.C Attacked Warlord 500 Warlord Defense Kills 422 Friendly Fire -327 Cogmind --------- Core Integrity 0/1150 Matter 300/300 Energy 100/100 System Corruption 0% Temperature Cool (0) Movement Core (350) Ox6 Location -4/Warlord Parts ------- > --- POWER (2) -------- (None) > --- PROPULSION (5) --- (None) > --- UTILITY (10) ----- Large Storage Unit Advanced Signal Interpreter Makeshift Terrain Scan Processor > --- WEAPON (2) ------- (None) > --- INVENTORY (15) --- Cooled Gravmag System Combat Gravmag System Cooled Impulse Thruster Improved Heat Sink Experimental Coolant Injector Experimental Sensor Array Advanced Terrain Scanner Experimental Core Analyzer Transdimensional Reconstructor Vortex Shotgun Vortex Shotgun Vortex Cannon (14) Vortex Cannon (8) Powered Hammer Powered Hammer Peak State ------------ > --- POWER ------------ Vortex Chain Reactor > --- PROPULSION ------- Antigrav System Antigrav System Combat Gravmag System Cooled Antigrav System Cooled Impulse Thruster > --- UTILITY ---------- Large Storage Unit Experimental Sensor Array Advanced Signal Interpreter Advanced Terrain Scanner Makeshift Terrain Scan Processor Improved Melee Analysis Suite Advanced Actuator Array Experimental Phase Shifter Experimental Focal Shield Advanced Remote Shield > --- WEAPON ----------- Vortex Cannon Vortex Cannon > --- INVENTORY -------- Cooled Gravmag System Combat Gravmag System Cooled Impulse Thruster Improved Heat Sink Experimental Coolant Injector Advanced Terrain Scanner Experimental Core Analyzer Transdimensional Reconstructor Vortex Shotgun Vortex Shotgun Powered Hammer Powered Hammer [Rating: 143] Favorites ----------- Power Light Ion Engine Engine Light Ion Engine Power Core Micro Fission Core Reactor Heavy Antimatter Reactor Propulsion Antigrav System Treads Light Treads Leg Aluminum Leg Hover Unit Antigrav System Flight Unit Makeshift Flight Unit Utility Improved Melee Analysis Suite Device Experimental Sensor Array Storage Large Storage Unit Processor Improved Melee Analysis Suite Hackware Advanced Hacking Suite Protection Light Armor Plating Weapon Assault Rifle Energy Gun EM Pulse Gun Energy Cannon Vortex Cannon Ballistic Gun Assault Rifle Launcher Heavy Shock Bomb Launcher Impact Weapon Powered Hammer Slashing Weapon Makeshift Axe Build | -11 -10 -10 -7 -5 -5 -5 -5 -4 -4 -4 -4 ------- Run | Yrd Mat Sub Scr Fac Upp Upp Zhi Pro Fac Upp War Slots Evolved 12 | . . . . 10 . . . . 2 . . Power 1 | . . . . 1 . . . . . . . Propulsion 3 | . . . . 3 . . . . . . . Utility 8 | . . . . 6 . . . . 2 . . Weapon . | . . . . . . . . . . . . Parts Attached 80 | . 8 4 8 27 2 . 4 . 18 . 9 Power 11 | . 2 1 2 2 . . 1 . 2 . 1 Engine 5 | . 2 1 1 1 . . . . . . . Core 4 | . . . 1 1 . . . . 2 . . Reactor 2 | . . . . . . . 1 . . . 1 Propulsion 20 | . 2 1 2 9 . . 2 . 2 . 2 Treads 4 | . 2 1 1 . . . . . . . . Leg . | . . . . . . . . . . . . Wheel . | . . . . . . . . . . . . Hover 14 | . . . . 9 . . 2 . 2 . 1 Flight 2 | . . . 1 . . . . . . . 1 Utility 38 | . 3 . 2 14 2 . 1 . 12 . 4 Device 18 | . 1 . . 4 2 . 1 . 6 . 4 Storage 3 | . 1 . . 1 . . . . 1 . . Processor 10 | . . . 2 4 . . . . 4 . . Hackware 5 | . . . . 4 . . . . 1 . . Protection 2 | . 1 . . 1 . . . . . . . Artifact . | . . . . . . . . . . . . Weapon 11 | . 1 2 2 2 . . . . 2 . 2 Energy Gun . | . . . . . . . . . . . . Energy Cannon 2 | . . . . . . . . . . . 2 Ballistic Gun 4 | . 1 2 1 . . . . . . . . Ballistic Cannon . | . . . . . . . . . . . . Launcher 1 | . . . . . . . . . 1 . . Special Weapon . | . . . . . . . . . . . . Impact Weapon 2 | . . . . 2 . . . . . . . Slashing Weapon 2 | . . . 1 . . . . . 1 . . Piercing Weapon . | . . . . . . . . . . . . Special Melee Weapon . | . . . . . . . . . . . . Unidentified Prototypes 12 | . . . . 1 . . 3 . . . 8 Parts Lost 34 | . 2 1 . 3 . . . . 11 . 17 Power 6 | . 1 1 . 1 . . . . 1 . 2 Propulsion 10 | . . . . 1 . . . . 2 . 7 Utility 16 | . 1 . . 1 . . . . 7 . 7 Weapon 2 | . . . . . . . . . 1 . 1 Highest Loss Streak 11 | . 1 1 . 2 . . . . 7 . 11 To Critical Strikes . | . . . . . . . . . . . . Average Backups 10 | . 9 14 13 5 8 8 8 9 6 5 8 Power . | . . 1 . . . . . . . . . Propulsion 2 | . 4 4 3 . 1 1 1 2 2 2 2 Utility 2 | . 1 2 2 4 4 4 3 5 2 1 2 Weapon 3 | . 3 6 5 . 3 3 2 1 1 1 3 Tool/Special . | . . . . . . . . . . . . Unused Backups 46 | . 8 2 22 5 . . 1 1 . . 7 Power 2 | . . . 2 . . . . . . . . Propulsion 15 | . 6 . 5 1 . . . . . . 3 Utility 9 | . . 1 5 2 . . . . . . 1 Weapon 17 | . 2 1 8 2 . . 1 1 . . 2 Tool/Special 3 | . . . 2 . . . . . . . 1 Average Slot Usage (%) 92 | . 97 100 96 78 100 100 99 100 94 94 74 Engine 8 | . 14 14 12 2 5 5 5 5 1 . 2 Core 1 | . . . 1 2 5 5 3 . 4 10 . Treads 14 | . 27 28 25 2 . . . . . . . Hover 10 | . . . . 17 29 29 29 29 25 26 16 Flight 1 | . . . 2 2 . . . . . . 1 Device 6 | . 3 . . 4 11 11 10 11 18 26 23 Storage 9 | . 14 14 11 3 5 5 5 5 5 5 5 Processor 8 | . . . 3 17 17 17 17 17 19 15 14 Hackware 4 | . . . . 16 11 11 11 11 5 . . Protection 6 | . 8 14 12 . . . . . . . . Ballistic Gun 13 | . 24 28 24 . . . . . . . . Impact Weapon 2 | . . . . . 11 11 11 11 7 5 3 Slashing Weapon 1 | . . . 1 4 . . . . 2 5 . Peak Build Rating 143 | . 8 11 24 88 96 96 101 101 113 100 143 Average Rating 44 | . 7 9 12 61 94 96 96 100 102 100 91 On Entrance 61 | 6 6 8 11 24 88 96 96 101 101 100 100 Naked Turns . | . . . . . . . . . . . . Heaviest Build 106 | 12 32 32 36 29 30 30 43 43 51 49 106 Greatest Support 58 | 20 40 40 48 58 58 58 58 58 58 58 58 Greatest Overweight (x) 8 | . . . 5 4 . . . . . . 8 Average Overweight (x) . | . . . . . . . . . . . 1 Largest Inventory Capacity 15 | . 15 15 15 10 10 10 10 10 15 15 15 Average Capacity 12 | . 11 15 13 8 10 10 10 10 10 15 15 Most Carried 15 | . 15 15 15 10 10 10 10 10 10 5 15 Average Carried 10 | . 9 14 13 6 10 10 9 9 6 5 8 Final Capacity 15 | 8 15 15 5 10 10 10 10 10 15 15 15 Final Carried 15 | 6 15 15 5 10 10 10 10 10 5 5 15 Class Distribution -------------------- 50% | Mutant 8% | Scavenger-Gladiator 7% | Hacker-Mutant 7% | Derelict-Mutant 6% | Hacker-Gladiator 5% | Scavenger-Assassin 3% | Scavenger-Scout Dominant Class ---------------- Mutant | -10/Materials Mutant | -10/Subcaves Mutant | -7/Scraptown Hacker-Mutant | -5/Factory Scavenger-Gladiator | -5/Upper Caves Scavenger-Gladiator | -5/Upper Caves Scavenger-Gladiator | -5/Zhirov Hacker-Gladiator | -4/Proximity Caves Scavenger-Scout | -4/Factory Scavenger-Scout | -4/Upper Caves Scavenger-Assassin | -4/Warlord Resources | -11 -10 -10 -7 -5 -5 -5 -5 -4 -4 -4 -4 ----------- Run | Yrd Mat Sub Scr Fac Upp Upp Zhi Pro Fac Upp War Matter Collected 1518 | 200 334 69 165 263 85 7 20 62 210 . 103 Remotely 106 | . 106 . . . . . . . . . . Salvage Created 2751 | . 535 84 . 969 35 . 343 . 602 . 183 Parts 117 | . 31 7 . 46 . . . . 28 . 5 Haulers Intercepted 2 | . 1 . . . . . . . 1 . . Recyclers Shooed 1 | . . . . 1 . . . . . . . Parts Field Recycled . | . . . . . . . . . . . . Retrieved Matter . | . . . . . . . . . . . . Parts Self-Destructed 12 | . . 11 . . . 1 . . . . . Prevented . | . . . . . . . . . . . . Kills | -11 -10 -10 -7 -5 -5 -5 -5 -4 -4 -4 -4 ------- Run | Yrd Mat Sub Scr Fac Upp Upp Zhi Pro Fac Upp War Combat Hostiles Destroyed 32 | . 13 2 . 4 . . . . 10 . 3 Melee 9 | . . . . 4 . . . . 5 . . Guns 15 | . 13 2 . . . . . . . . . Cannons 3 | . . . . . . . . . . . 3 AOE 3 | . . . . . . . . . 3 . . Classes Destroyed 13 | . 6 . . 3 1 . . . 2 . 1 Worker 7 | . 1 . . 4 . . . . 2 . . Builder 1 | . . . . 1 . . . . . . . Tunneler 1 | . 1 . . . . . . . . . . Hauler 2 | . 1 . . . . . . . 1 . . Recycler 8 | . 2 . . 5 . . . . 1 . . Operator 1 | . . . . 1 . . . . . . . Watcher 1 | . . . . . . . . . 1 . . Swarmer 14 | . 9 . . . . . . . 5 . . Cutter 3 | . . . . . . . . . 3 . . Grunt 8 | . 4 2 . . . . . . . . 2 Hunter 1 | . . . . . . . . . . . 1 Programmer 6 | . . . . 4 . . . . 2 . . Samaritan 1 | . . . . . 1 . . . . . . Thug 1 | . . . . . . . . . . . 1 Best Kill Streak 6 | . 6 2 . 4 . . . . 6 . 2 Combat Bots Only 5 | . 3 2 . 2 . . . . 5 . 2 Max Kills in Single Turn 3 | . 2 1 . 1 1 . . . 3 . 1 Gunslinging . | . . . . . . . . . . . . Exploded 2 | . . . . . . . . . 2 . . Melee 1 | . . . . 1 . . . . 1 . . Uniques/NPCs Destroyed . | . . . . . . . . . . . . Combat | -11 -10 -10 -7 -5 -5 -5 -5 -4 -4 -4 -4 -------- Run | Yrd Mat Sub Scr Fac Upp Upp Zhi Pro Fac Upp War Hostile Shots Fired 326 | . 73 12 . 44 . . . 2 57 . 138 Missed 121 | . 20 6 . 16 . . . . 26 . 53 Hits 205 | . 53 6 . 28 . . . 2 31 . 85 Melee 5 | . . . . . . . . . 5 . . Projectile 200 | . 53 6 . 28 . . . 2 26 . 85 AOE 16 | . . . . . . . . . 3 . 13 Critical Strikes 10 | . 1 . . 1 . . . . 1 . 7 Part Disruptions 3 | . . . . . 2 . . . . . 1 Damage Taken 5078 | . 505 130 . 572 42 . . 45 1511 . 2273 Core 1466 | . 123 . . 162 . . . 22 276 . 883 Absorbed by Shields 46 | . . . . . . . . . . . 46 Ignored by Resistances 59 | . . . . . . . . . . . 59 Regen/Repaired (Parts) 36 | . . . . . . . . . . . 36 Core Remaining (%) 77 | 100 . . 50 . . . . 81 . . . Volleys Fired 86 | . 55 17 . . . . . . 5 . 9 Largest 2 | . 2 2 . . . . . . 1 . 2 Hottest 100 | . 60 40 . . . . . . 46 . 100 Shots Fired 165 | . 110 34 . . . . . . 4 . 17 Gun 144 | . 110 34 . . . . . . . . . Cannon 17 | . . . . . . . . . . . 17 Launcher 4 | . . . . . . . . . 4 . . Special . | . . . . . . . . . . . . Kinetic 122 | . 88 34 . . . . . . . . . Thermal . | . . . . . . . . . . . . Explosive . | . . . . . . . . . . . . Electromagnetic 26 | . 22 . . . . . . . 4 . . Entropic 17 | . . . . . . . . . . . 17 Robot Hit Streak 8 | . 8 6 . . . . . . . . 2 Robot Miss Streak 4 | . 3 2 . . . . . . 4 . 2 Penetration Max . | . . . . . . . . . . . . Secondary Targets 3 | . 2 1 . . . . . . . . . Max Gunslinging Chain 1 | . 1 1 . . . . . . . . . Shots Hit Robots 164 | . 65 22 . 41 1 . 7 . 20 . 8 Core Hits 59 | . 20 8 . 12 . . 2 . 12 . 5 Critical Kills 1 | . . . . . . . . . 1 . . Critical Parts Destroyed 3 | . . . . . 1 . 1 . 1 . . Critical Strikes 14 | . . . . 3 1 . 1 . 3 . 6 Smash 4 | . . . . . 1 . 1 . 2 . . Sever 4 | . . . . 3 . . . . 1 . . Sunder 6 | . . . . . . . . . . . 6 Melee Attacks 139 | . . . . 62 1 . 8 9 59 . . Impact 65 | . . . . . 1 . 8 9 47 . . Slashing 74 | . . . . 62 . . . . 12 . . Piercing . | . . . . . . . . . . . . Sneak Attacks 17 | . . . . 12 1 . . . 4 . . Combat Hostiles . | . . . . . . . . . . . . Follow-up Attacks 6 | . . . . . . . 2 . 4 . . Damage Inflicted 6573 | . 918 235 . 2114 126 . 661 . 1502 . 1017 Guns 1111 | . 876 235 . . . . . . . . . Cannons 1017 | . . . . . . . . . . . 1017 Explosions 382 | . 37 . . . . . . . 345 . . Melee 4058 | . . . . 2114 126 . 661 . 1157 . . Ramming 5 | . 5 . . . . . . . . . . Kinetic 930 | . 695 235 . . . . . . . . . Thermal 200 | . 37 . . . . . . . 163 . . Explosive . | . . . . . . . . . . . . Electromagnetic 363 | . 181 . . . . . . . 182 . . Impact 1885 | . . . . . 126 . 661 . 1098 . . Slashing 2173 | . . . . 2114 . . . . 59 . . Piercing . | . . . . . . . . . . . . Entropic 1017 | . . . . . . . . . . . 1017 Highest Corruption 21 | . . . . 4 4 4 4 4 20 20 21 Average Corruption 6 | . . . . 3 4 4 4 4 16 20 20 Corruption Purged . | . . . . . . . . . . . . Corruption Blocked . | . . . . . . . . . . . . Effects 53 | . . . . 17 4 3 2 10 14 2 1 Message Errors 8 | . . . . 2 . 1 . 3 2 . . Matter Fused 13 | . . . . 2 1 1 . 2 6 . 1 Heat Flow Errors 8 | . . . . 6 . 1 . . . 1 . Energy Discharges 10 | . . . . 3 1 . 1 2 2 1 . Data Loss (minor) 8 | . . . . 3 1 . . 3 1 . . Data Loss (major) 3 | . . . . . 1 . 1 . 1 . . Alerts 1 | . . . . 1 . . . . . . . Misdirections 1 | . . . . . . . . . 1 . . Weapon Failures 1 | . . . . . . . . . 1 . . Overload Shots . | . . . . . . . . . . . . Overflow Damage 1238 | . . . . 321 126 . 347 . 383 . 61 Projectiles 61 | . . . . . . . . . . . 61 Explosions 52 | . . . . . . . . . 52 . . Melee 1125 | . . . . 321 126 . 347 . 331 . . Knockbacks 6 | . . . . . . . 2 . 4 . . Impact 6 | . . . . . . . 2 . 4 . . Kinetic . | . . . . . . . . . . . . Secondary . | . . . . . . . . . . . . Self-Inflicted Damage 104 | . . . . . . . . . 104 . . Shots 3 | . . . . . . . . . 3 . . Rammed . | . . . . . . . . . . . . Targets Rammed 1 | . 1 . . . . . . . . . . Kicked . | . . . . . . . . . . . . Crushed 1 | . 1 . . . . . . . . . . Highest Temperature 232 | . 18 . . 232 227 197 6 . 8 140 96 Average Temperature 62 | . 8 . . 75 10 105 4 . 3 75 37 Received Heat Transfer 476 | . 114 42 . . . . . 9 . . 311 Siege Activations . | . . . . . . . . . . . . Martial Activations . | . . . . . . . . . . . . Shielding Activations . | . . . . . . . . . . . . Robots Disrupted . | . . . . . . . . . . . . Combat Hostiles . | . . . . . . . . . . . . Robots Corrupted 6 | . 1 . . . 1 . 1 . 3 . . Combat Hostiles 3 | . . . . . . . 1 . 2 . . Parts Fried 7 | . 1 . . . . . . . 6 . . Impact Corruptions 31 | . . . . . 7 . 13 . 11 . . Robots Melted . | . . . . . . . . . . . . Combat Hostiles . | . . . . . . . . . . . . Parts Melted . | . . . . . . . . . . . . Heat Transferred 100 | . 50 . . . . . . . 50 . . Parts Sabotaged . | . . . . . . . . . . . . Parts Stolen . | . . . . . . . . . . . . Parts Stripped . | . . . . . . . . . . . . Power Chain Reactions 2 | . 1 . . . . . . . 1 . . Alert | -11 -10 -10 -7 -5 -5 -5 -5 -4 -4 -4 -4 ------- Run | Yrd Mat Sub Scr Fac Upp Upp Zhi Pro Fac Upp War Maximum Alert Level . | . . . . . . . . . . . . Low Security (%) 100 | . 100 . . 100 . . . . 100 . . Level 1 . | . . . . . . . . . . . . Level 2 . | . . . . . . . . . . . . Level 3 . | . . . . . . . . . . . . Level 4 . | . . . . . . . . . . . . Level 5 . | . . . . . . . . . . . . High Security . | . . . . . . . . . . . . Max Security . | . . . . . . . . . . . . Peak Influence 182 | . 78 . . 52 . . . . 182 . . Initial . | . . . . . . . . . . . . Average 36 | . 20 . . 11 . . . . 122 . . Influence Increases 1238 | . 376 50 . 241 45 . 10 . 441 . 75 Destroy 0b10 Robot/C 640 | . 260 40 . 80 . . . . 200 . 60 Destroy 0b10 Robot/NC 115 | . 25 . . 55 . . 10 . 25 . . Destroy Leader 126 | . 62 10 . 20 . . . . 34 . . Successful Hack 33 | . 26 . . 2 . . . . 5 . . Disable Machine 15 | . . . . 15 . . . . . . . Destroy Structure 69 | . 3 . . 24 . . . . 42 . . Partial Spotted 15 | . . . . . . . . . 15 . . Lose Combat Pursuer 225 | . . . . 45 45 . . . 120 . 15 Influence Decreases 1238 | . 365 61 . 241 45 . 10 . 338 59 119 Entered New Map 89 | . . 6 . . . . . . . 39 44 Time Decay 992 | . 345 55 . 241 45 . 10 . 228 20 48 Lost Part 157 | . 20 . . . . . . . 110 . 27 Squads Dispatched 13 | . 3 . . 6 . . . . 4 . . Investigation 2 | . 1 . . 1 . . . . . . . Extermination 4 | . . . . 2 . . . . 2 . . Reinforcement 7 | . 2 . . 3 . . . . 2 . . Assault . | . . . . . . . . . . . . Garrison . | . . . . . . . . . . . . Intercept . | . . . . . . . . . . . . Searches Triggered . | . . . . . . . . . . . . Construction Impeded . | . . . . . . . . . . . . Haulers Reinforced . | . . . . . . . . . . . . Active Scanning Responses . | . . . . . . . . . . . . Cargo Convoy Interrupts . | . . . . . . . . . . . . Stealth | -11 -10 -10 -7 -5 -5 -5 -5 -4 -4 -4 -4 --------- Run | Yrd Mat Sub Scr Fac Upp Upp Zhi Pro Fac Upp War Distress Signals 5 | . 2 . . 1 . . . . 2 . . Communications Jammed . | . . . . . . . . . . . . Distress Signals . | . . . . . . . . . . . . Times Spotted 104 | . 29 3 . 11 1 . . 1 23 . 36 Peak Tracking Total 17 | . 5 2 . 3 3 . . 1 7 . 17 Tactical Retreats 10 | . . . . 3 2 . . . 4 . 1 Traps | -11 -10 -10 -7 -5 -5 -5 -5 -4 -4 -4 -4 ------- Run | Yrd Mat Sub Scr Fac Upp Upp Zhi Pro Fac Upp War Traps Triggered 4 | . 1 . . 1 1 . . . . . 1 Indirectly . | . . . . . . . . . . . . Trap Hack Attempts . | . . . . . . . . . . . . Triggered . | . . . . . . . . . . . . Disarmed . | . . . . . . . . . . . . Reprogrammed . | . . . . . . . . . . . . Reused . | . . . . . . . . . . . . Traps Extracted . | . . . . . . . . . . . . Installed . | . . . . . . . . . . . . Triggered . | . . . . . . . . . . . . Machines | -11 -10 -10 -7 -5 -5 -5 -5 -4 -4 -4 -4 ---------- Run | Yrd Mat Sub Scr Fac Upp Upp Zhi Pro Fac Upp War Machines Disabled 4 | . . . . 1 . . 1 . . . 2 Max in Single Turn 1 | . . . . 1 . . 1 . . . 1 Machines Repaired . | . . . . . . . . . . . . Machines Dismantled . | . . . . . . . . . . . . Machines Sabotaged . | . . . . . . . . . . . . Overloaded Fab Kills . | . . . . . . . . . . . . Hacking | -11 -10 -10 -7 -5 -5 -5 -5 -4 -4 -4 -4 --------- Run | Yrd Mat Sub Scr Fac Upp Upp Zhi Pro Fac Upp War Machines Accessed 35 | . 6 . 3 7 1 1 4 1 6 . 6 Terminals 19 | . 6 . . 7 . . . 1 5 . . Fabricators . | . . . . . . . . . . . . Repair Stations . | . . . . . . . . . . . . Recycling Units 1 | . . . . . . . . . 1 . . Scanalyzers . | . . . . . . . . . . . . Garrison Access . | . . . . . . . . . . . . Total Hacks 86 | . 13 . 14 24 1 1 14 1 12 . 6 Successful 67 | . 10 . 14 14 1 1 14 1 6 . 6 Failed 19 | . 3 . . 10 . . . . 6 . . Catastrophic 2 | . . . . . . . . . 2 . . Database Lockouts . | . . . . . . . . . . . . Manual 10 | . 1 . . 4 . . . . 5 . . Terminals 48 | . 13 . . 24 . . . 1 10 . . Fabricators . | . . . . . . . . . . . . Repair Stations . | . . . . . . . . . . . . Recycling Units 2 | . . . . . . . . . 2 . . Scanalyzers . | . . . . . . . . . . . . Garrison Access . | . . . . . . . . . . . . Terminal Hacks 62 | . 9 . 14 12 1 1 14 1 4 . 6 Record 22 | . . . 14 . . . 2 1 . . 5 Part Schematic 4 | . . . . . . . 4 . . . . Robot Analysis 4 | . . . . . . . 4 . . . . Prototype ID Bank 8 | . 3 . . 1 . . 4 . . . . Open Door 3 | . . . . . 1 1 . . . . 1 Branch Access Points 2 | . . . . 1 . . . . 1 . . Emergency Access Points 2 | . 1 . . 1 . . . . . . . Alert Level 1 | . . . . 1 . . . . . . . Locate Traps 7 | . 3 . . 3 . . . . 1 . . Maintenance Status 1 | . . . . . . . . . 1 . . Reinforcement Status 1 | . . . . 1 . . . . . . . Recall Extermination 1 | . . . . 1 . . . . . . . Hauler Manifests 1 | . . . . . . . . . 1 . . Registered Components 1 | . . . . 1 . . . . . . . Zone Layout 4 | . 2 . . 2 . . . . . . . Fabricator Hacks . | . . . . . . . . . . . . Repair Station Hacks . | . . . . . . . . . . . . Recycling Unit Hacks 1 | . . . . . . . . . 1 . . Retrieve Components 1 | . . . . . . . . . 1 . . Scanalyzer . | . . . . . . . . . . . . Garrison Access Hacks . | . . . . . . . . . . . . Unauthorized Hacks 4 | . 1 . . 2 . . . . 1 . . Terminals 4 | . 1 . . 2 . . . . 1 . . Botnet 4 | . 1 . . 2 . . . . 1 . . Fabricators . | . . . . . . . . . . . . Repair Stations . | . . . . . . . . . . . . Recycling Units . | . . . . . . . . . . . . Scanalyzers . | . . . . . . . . . . . . Garrison Access . | . . . . . . . . . . . . Data Cores Recovered 1 | . . . . 1 . . . . . . . Used . | . . . . . . . . . . . . Hacking Detections 15 | . 5 . . 6 . . . . 4 . . Full Trace Events 1 | . . . . 1 . . . . . . . Feedback Events . | . . . . . . . . . . . . Feedback Blocked . | . . . . . . . . . . . . Robot Schematics Acquired . | . . . . . . . . . . . . Robots Built . | . . . . . . . . . . . . Authchips . | . . . . . . . . . . . . Time . | . . . . . . . . . . . . Total Robot Build Rating . | . . . . . . . . . . . . Part Schematics Acquired 4 | . . . . . . . 4 . . . . Parts Built . | . . . . . . . . . . . . Authchips . | . . . . . . . . . . . . Time . | . . . . . . . . . . . . Total Part Build Rating . | . . . . . . . . . . . . Parts Repaired . | . . . . . . . . . . . . Time . | . . . . . . . . . . . . Parts Recycled . | . . . . . . . . . . . . Recycled Matter . | . . . . . . . . . . . . Retrieved Matter . | . . . . . . . . . . . . Retrieved Components 1 | . . . . . . . . . 1 . . Parts Scanalyzed . | . . . . . . . . . . . . Part Schematics Acquired . | . . . . . . . . . . . . Parts Damaged . | . . . . . . . . . . . . Bothacking | -11 -10 -10 -7 -5 -5 -5 -5 -4 -4 -4 -4 ------------ Run | Yrd Mat Sub Scr Fac Upp Upp Zhi Pro Fac Upp War Used RIF Installer . | . . . . . . . . . . . . Robots Hacked . | . . . . . . . . . . . . Non-combat . | . . . . . . . . . . . . Combat . | . . . . . . . . . . . . Robot Hacks Applied . | . . . . . . . . . . . . Relay Couplers Released . | . . . . . . . . . . . . Fabnet Peak Effective % . | . . . . . . . . . . . . Robots Rewired . | . . . . . . . . . . . . Allies Hacked . | . . . . . . . . . . . . Hacks Repelled . | . . . . . . . . . . . . Allies | -11 -10 -10 -7 -5 -5 -5 -5 -4 -4 -4 -4 -------- Run | Yrd Mat Sub Scr Fac Upp Upp Zhi Pro Fac Upp War Total Allies . | . . . . . . . . . . . . Largest Group . | . . . . . . . . . . . . Highest-Rated Group . | . . . . . . . . . . . . Highest-Rated Ally . | . . . . . . . . . . . . Total Orders . | . . . . . . . . . . . . Ally Attacks . | . . . . . . . . . . . . Total Damage . | . . . . . . . . . . . . Kills . | . . . . . . . . . . . . Allies Corrupted . | . . . . . . . . . . . . Allies Melted . | . . . . . . . . . . . . Intel | -11 -10 -10 -7 -5 -5 -5 -5 -4 -4 -4 -4 ------- Run | Yrd Mat Sub Scr Fac Upp Upp Zhi Pro Fac Upp War Active Infowar (turns) 3283 | . . . . 895 311 238 104 431 486 55 763 Sensors 2913 | . . . . 668 311 238 104 431 365 55 741 Terrain 1300 | . . . . . . . . . 482 55 763 Machine Analysis 452 | . . . . 452 . . . . . . . Robot Analysis Total 4 | . . . . . . . 4 . . . . Derelict Logs Recovered 8 | . . 1 2 . 1 1 . 3 . . . Drone Launches . | . . . . . . . . . . . . Drone Recoveries . | . . . . . . . . . . . . Exploration | -11 -10 -10 -7 -5 -5 -5 -5 -4 -4 -4 -4 ------------- Run | Yrd Mat Sub Scr Fac Upp Upp Zhi Pro Fac Upp War Turns Passed 7905 | . 1265 718 2373 1095 311 238 104 431 539 55 776 Spaces Moved 7538 | 1 649 402 1683 1172 626 517 163 912 770 119 524 Core 9 | . . . 6 1 . . . . . . 2 Treads 2281 | . 631 402 1248 . . . . . . . . Legs 19 | 1 18 . . . . . . . . . . Wheels . | . . . . . . . . . . . . Hover 4707 | . . . . 1079 626 517 163 912 770 119 521 Flight 522 | . . . 429 92 . . . . . . 1 Fastest Speed 42 | 120 120 160 55 44 46 46 42 42 42 46 46 Average Speed 90 | 120 158 160 138 58 46 46 44 42 43 46 137 Slowest Speed 450 | 120 160 160 300 250 46 46 46 42 55 46 450 Overloaded Moves 89 | . . . . . . . . . . . 89 Propulsion Burnouts . | . . . . . . . . . . . . Robots Hopped 1 | . . . . 1 . . . . . . . Potential Cave-ins 5 | . . . . 2 . . . 2 1 . . Cave-ins Triggered 2 | . . . . . . . . . 2 . . Exploration Rate (%) 52 | 2 79 27 92 29 76 70 61 92 17 10 72 Regions Visited 11 Branch Regions 8 Pre-discovered Areas 3 | . . 1 1 . . . . 1 . . . Known Exits Taken 7 | . . . . 1 1 1 1 1 1 1 . Unknown Exits Taken 4 | 1 1 1 1 . . . . . . . . Scrap Searched 12 | . . . 4 . 2 2 . 4 . . . Spaces Dug 42 | . . . . 15 . . . 9 18 . . Terrain Destroyed 54 | . 3 . . 15 . . . 9 27 . . Melee 42 | . . . . 15 . . . 9 18 . . Projectile . | . . . . . . . . . . . . AOE 12 | . 3 . . . . . . . 9 . . Terrain Rammed . | . . . . . . . . . . . . Walls Destroyed . | . . . . . . . . . . . . Machines Disabled . | . . . . . . . . . . . . Actions | -11 -10 -10 -7 -5 -5 -5 -5 -4 -4 -4 -4 --------- Run | Yrd Mat Sub Scr Fac Upp Upp Zhi Pro Fac Upp War Total 8319 | . 776 445 1733 1511 647 516 186 945 877 118 565 Wait 351 | . 39 12 . 224 16 . . 18 34 . 8 Move 7525 | . 648 401 1682 1169 625 516 162 911 769 118 524 Hop 1 | . . . . 1 . . . . . . . Pick Up 63 | . 17 5 15 11 1 . 3 4 . . 7 Fast Attach 54 | . 1 1 7 22 . . 5 . 11 . 7 Attach 14 | . 2 1 . 3 . . . . 7 . 1 Detach 7 | . . . . 2 . . . . 1 . 4 Swap 24 | . 5 2 4 5 2 . 2 . 3 . 1 Drop 73 | . 8 6 25 12 2 . 9 3 4 . 4 Fire 86 | . 55 17 . . . . . . 5 . 9 Melee 120 | . . . . 62 1 . 5 9 43 . . Ram . | . . . . . . . . . . . . Kick . | . . . . . . . . . . . . Crush 1 | . 1 . . . . . . . . . . Escape Stasis . | . . . . . . . . . . . . Rewire . | . . . . . . . . . . . . Trap . | . . . . . . . . . . . . Miscellaneous . | . . . . . . . . . . . . Route ------- -11/Scrapyard -10/Materials (discovered 6 exits: [*Mat x3] / [*Min x2] / [*Sub]) -10/Subcaves (discovered 2 exits: [*Mat] / *Scr) -7/Scraptown (discovered 2 exits: *Fac x2) -5/Factory (discovered 6 exits: *Fac x2 / *Upp x2 / Ext x2) -5/Upper Caves -5/Upper Caves (discovered 2 exits: *Fac / *Zhi) -5/Zhirov -4/Proximity Caves -4/Factory (discovered 3 exits: Res / *Upp x2) -4/Upper Caves -4/Warlord (discovered 1 exit: *Pro) History --------- Turn | Location | Event 1 | -11/Scrapyard | Discovered new exit (range 0) 1 | -11/Scrapyard | Entered Materials 171 | -10/Materials | Discovered new exit (range 13) 173 | -10/Materials | Discovered new exit (range 15) 314 | -10/Materials | Build established: Mutant 323 | -10/Materials | Discovered new exit (range 12) 596 | -10/Materials | Discovered new exit (range 4) 846 | -10/Materials | Discovered new exit (range 9) 1256 | -10/Materials | Discovered new exit (range 7) 1266 | -10/Materials | Entered Subcaves 1267 | -10/Subcaves | Approached by a straggling Scientist 1285 | -10/Subcaves | Learned location of Zion (-6) 1285 | -10/Subcaves | Met a Zionite searching for "candidates" 1359 | -10/Subcaves | Learned Materials terminal intel 1520 | -10/Subcaves | Scientist uncovered a shortcut to Scraptown 1589 | -10/Subcaves | Shifting Twisted Machinery released Riot Gun 1592 | -10/Subcaves | Shifting Twisted Machinery released Spk. Treads 1595 | -10/Subcaves | Discovered new exit (range 5) 1672 | -10/Subcaves | Shifting Twisted Machinery released Multitool 1700 | -10/Subcaves | Shifting Twisted Machinery released Sub. Machine Gun 1984 | -10/Subcaves | Entered Scraptown 2040 | -7/Scraptown | Learned location of Extension (-5) 2124 | -7/Scraptown | Heard Great Nut preacher, LISTEN AND RECITE! 2274 | -7/Scraptown | Scanned Subdweller tech in exchange for log data 2279 | -7/Scraptown | Learned Factory security intel 2280 | -7/Scraptown | Learned Research stockpile data 2303 | -7/Scraptown | Discovered new exit (range 5) 2444 | -7/Scraptown | Visited TADAMA 2482 | -7/Scraptown | Visited Observation Area 2536 | -7/Scraptown | Visited Spacefarers 2648 | -7/Scraptown | Visited SPCMW 2704 | -7/Scraptown | Visited Cave Peace 2791 | -7/Scraptown | Visited UFD Registry 2791 | -7/Scraptown | Registered with UFD as "Arcback" 2810 | -7/Scraptown | Visited Cyclists 2821 | -7/Scraptown | Entered Cyclist Reading Room 3560 | -7/Scraptown | Visited Junk Repository 3605 | -7/Scraptown | Visited Abandonware Association 3622 | -7/Scraptown | Learned abandonware demo "REVENGE.EXE" 3622 | -7/Scraptown | Learned abandonware demo "MELTYB.EXE" 3675 | -7/Scraptown | Visited Chapter 10 3893 | -7/Scraptown | Visited Scrapoid Pod Storage 3902 | -7/Scraptown | Found Scrapoid Pod 3931 | -7/Scraptown | Visited DA-N13 Charitable Foundation 3943 | -7/Scraptown | Found DCF Scrap (29 items) 4086 | -7/Scraptown | Visited Scrap Suit Storage 4112 | -7/Scraptown | Visited Derelict Rescue Squad 4119 | -7/Scraptown | Found DRS Beacon 4134 | -7/Scraptown | Visited Infowarlord's Domain 4140 | -7/Scraptown | Found Exp. Sensor Array 4170 | -7/Scraptown | Visited LU-1G1's Boring Crew 4268 | -7/Scraptown | Met Optimus 4268 | -7/Scraptown | Accepted into 0bPrime 4273 | -7/Scraptown | Build established: Derelict-Mutant 4356 | -7/Scraptown | Discovered new exit (range 3) 4357 | -7/Scraptown | Entered Factory 4357 | -5/Factory | Evolved 10 slots: Power x1, Propulsion x3, Utility x6 4539 | -5/Factory | Discovered new exit (range 8) 4557 | -5/Factory | Identified exit to Upper Caves 4558 | -5/Factory | Discovered new exit (range 15) 5125 | -5/Factory | Build established: Hacker-Mutant 5331 | -5/Factory | Identified exit to Extension 5341 | -5/Factory | Discovered new exit (range 15) 5362 | -5/Factory | Identified exit to Factory 5452 | -5/Factory | Entered Upper Caves 5586 | -5/Upper Caves | Encountered a Warlord checkpoint 5685 | -5/Upper Caves | Learned Factory trap positions 5715 | -5/Upper Caves | Build established: Scavenger-Gladiator 5760 | -5/Upper Caves | Discovered new exit (range 8) 5763 | -5/Upper Caves | Identified exit to Upper Caves 5763 | -5/Upper Caves | Entered another Upper Caves area 5843 | -5/Upper Caves | Discovered exit to Factory (range 11) 5881 | -5/Upper Caves | Learned location of 1 exit from Factory 5925 | -5/Upper Caves | Discovered new exit (range 5) 6000 | -5/Upper Caves | Identified exit to Zhirov 6001 | -5/Upper Caves | Entered Zhirov 6001 | -5/Zhirov | Discovered new exit (range 3) 6034 | -5/Zhirov | Found Alien Artifact 6034 | -5/Zhirov | Identified Integrated Reactor 6034 | -5/Zhirov | Installed Integrated Reactor, increased core energy generation (+10) 6043 | -5/Zhirov | Found Alien Artifact 6104 | -5/Zhirov | Identified exit to Proximity Caves 6105 | -5/Zhirov | Entered Proximity Caves 6156 | -4/Proximity Caves | Learned location of Armory (-3) 6199 | -4/Proximity Caves | Learned Research trap positions 6376 | -4/Proximity Caves | Build established: Hacker-Gladiator 6459 | -4/Proximity Caves | Attracted the attention of an 0b10 checkpoint 6536 | -4/Proximity Caves | Entered Factory 6536 | -4/Factory | Evolved 2 slots: Utility x2 6537 | -4/Factory | Identified exit to Research 6538 | -4/Factory | Loaded intel: 102 trap records 6580 | -4/Factory | Identified exit to Upper Caves 6758 | -4/Factory | Crushed by falling debris 6773 | -4/Factory | System corruption reached 10% 6874 | -4/Factory | Lost 7 parts (1p2n3u1w) 6989 | -4/Factory | Crushed by falling debris 7075 | -4/Factory | Entered Upper Caves 7122 | -4/Upper Caves | Build established: Scavenger-Scout 7127 | -4/Upper Caves | A Derelict revealed a hidden shortcut to "reach the base" 7129 | -4/Upper Caves | Identified exit to Warlord 7130 | -4/Upper Caves | Entered Warlord 7164 | -4/Warlord | Lost 6 parts (2p2n1u1w) 7172 | -4/Warlord | System corruption cleaned by Quarantine Array 7411 | -4/Warlord | Visited the Vortex Lab 7415 | -4/Warlord | Warlord's base attacked by MAIN.C 7423 | -4/Warlord | Found Prototype Energy Gun 7426 | -4/Warlord | Build established: Scavenger-Assassin 7426 | -4/Warlord | Found Prototype Energy Gun 7428 | -4/Warlord | Found Prototype Energy Cannon 7430 | -4/Warlord | Found Prototype Energy Cannon 7590 | -4/Warlord | Identified Vortex Cannon (x2) 7596 | -4/Warlord | Found Prototype Reactor 7596 | -4/Warlord | Identified Vortex Chain Reactor 7610 | -4/Warlord | Found Prototype Device 7610 | -4/Warlord | Identified Exp. Phase Shifter 7623 | -4/Warlord | Found Prototype Device 7623 | -4/Warlord | Identified Exp. Focal Shield 7625 | -4/Warlord | Found Prototype Processor 7684 | -4/Warlord | Rebuked by Warlord 7765 | -4/Warlord | Warlord forces counterattacked 7799 | -4/Warlord | Lost 4 allies 7848 | -4/Warlord | Spotted Striker 7848 | -4/Warlord | Spotted Executioner 7850 | -4/Warlord | Spotted Executioner 7874 | -4/Warlord | Spotted Executioner 7887 | -4/Warlord | Discovered new exit (range 14) 7892 | -4/Warlord | Core integrity fell below 50% 7904 | -4/Warlord | Core integrity fell below 20% 7904 | -4/Warlord | Identified exit to Proximity Caves 7906 | -4/Warlord | Lost 15 allies 7906 | -4/Warlord | Destroyed by D-63 Destroyer with Heavy Rocket Launcher Last Messages --------------- 07895_ Dropped Vortex Chain Reactor. 07897_ Penetrated by Slug. 07897_ Slug penetrates Wall. 07897_ Penetrated by Slug. 07897_ Cld. Antigrav System destroyed. 07898_ Adv. Actuator Array destroyed. 07899_ The unstable cave ceiling collapses. 07900_ Slug penetrates Earth. 07903_ The unstable cave ceiling collapses. 07903_ Cld. Impulse Thruster destroyed. 07903_ Penetrated by Slug. 07903_ Slug penetrates Earth. 07903_ Penetrated by Slug. 07903_ Slug penetrates Earth. 07904_ The unstable cave ceiling collapses. 07904_ EXIT=IDENTIFIED: PROXIMITY CAVES 07905_ The unstable cave ceiling collapses. 07905_ ANNOUNCEMENT: MAIN.C reinforcements approaching through caves, arriving soon. 07906_ The unstable cave ceiling collapses. Map ----- +----------------------------------------------------+ | | | | | | | | | | | | | | | | | | | ?#??#?????????????????????????? | | ?##??###??????????????????????? | | ?##???????????????????????????? | | ?#???##?#?????????????????????? | | ####?????#??????????#?????????? | | ?#??????#??#????#?????????????? | | #??????#???????????????#???#??? | | ????#????????????#???????????#? | | #??#???????????????????????? #? | | ##???###???????????????????? ?? | | ?#???????#?????????????????# ?? | | #???#???###?????????#?###?# ### | | #?#??#?#???????#????### # # | | ###?#?## ? #?????#?# # | | #?#?#?# ?? ???#????## | | ##?###??? ??#??##?## > | | ?###?## ? #?#??## @ | | ####### ?#####?# | | #?###### #??### | | ?######### ###?### | | ######?#### #### # | | ####?#####?# ## # b # # | | ############ ## i # # | | ############ ### | | #####?####?## ### | | ########?#### %= #? | | ####?#?######## [ ## | | #######?#####?# ### | | #######?####??## gd ;# *%#?? | | #########?###### d##" ;## | | ######?#####?## ## #### g ## | | ############### ## #"# ##? | | ![" "" """##?## ##" " #### | | [=% * """###### "" ##?#? | | !*%*[% % ### ##" ##### | | %%%[=[! " "# #?## | | ]%=*%=% + ""## #?## | | %%=*[=[! #### "" # #?## | | %===*=! """"##### ##### ##?# | | =!*%! """"""##### #?### #?? | | [################ #### # #?? | +----------------------------------------------------+ Best States ------------- Heat Dissipation 57 Coolant Potential 120 Energy Generation 65 Energy Capacity 700 Matter Stores 300 Matter Capacity 300 Sight Range 16 Robot Scan Range 20 Terrain Scan Range 20 Terrain Scan Density 135 Armor Coverage 150 Resistance: KI 30 Melee Speed Boost 20 Phase Shifting 20 Evasion (%) 68 Melee Accuracy 17 Armor Integrity Analysis 40 Recoil Reduction 2 Offensive Hacking 28 Defensive Hacking 14 Item Schematics ----------------- Assault Drone Bay | -5/Zhirov | Free Exp. Optical Array | -5/Zhirov | Free Exp. Heat Sink | -5/Zhirov | Free Imp. Arc Thrower | -5/Zhirov | Free Robot Schematics ------------------ None Fabricated ------------ Nothing Repaired ---------- Nothing Alien Tech Used ----------------- Integrated Reactor Achievements -------------- None Challenges ------------ None Game ------ Seed HackingCoolantOptics Manual? 0 Play Time 01:41:06 Cumulative 430.0 hours Start 2025.07.28 @ 19:49:34 End 2025.07.29 @ 14:46:45 Sessions 2 Manual Loads 0 Difficulty Rogue Special Mode None Game No. 245 Rogue 245 Adventurer 0 Explorer 0 Win Type - Total 11 Types 10/0/1/0/0/0/0/0/0/0 Lore% 68 Gallery% 66 Achievement% 53 Wizard Run 0 Options --------- Layout 1 ASCII 0 Keyboard 0 Movement Numpad Keybinds 0 Fullscreen 1 Font 24/Smallcaps Map View 50x35 Zoom Use 0% Tactical HUD 1 Map Filters NONE Filters NONE Steam 1 RUN: 48f412d8-71be-4838-bb37-477cc853a052